[Event "Titled Tuesday Blitz May 9 Late 2023"]
[White "Hjartarson, Johann"]
[Black "Rorrer, Grayson"]
[WhiteFideId "2300044"]
[BlackFideId "30944996"]
[WhiteElo "2407"]
[BlackElo "2200"]
[Result "1-0"]
[Round "08"]
[TimeControl "180+2"]
[Date "2023.05.09"]
[WhiteClock "0:00:37"]
[BlackClock "0:00:02"]

1. e4 {[%clk 0:03:00]}  c6 {[%clk 0:02:33]} 2. d4 {[%clk 0:02:58]}  d5 {[%clk 0:02:33]} 3. e5 {[%clk 0:02:58]}  c5 {[%clk 0:02:32]} 4. dxc5 {[%clk 0:02:57]}  Nc6 {[%clk 0:02:32]} 5. Nf3 {[%clk 0:02:57]}  Bg4 {[%clk 0:02:32]} 6. Be2 {[%clk 0:02:55]}  e6 {[%clk 0:02:31]} 7. Nbd2 {[%clk 0:02:54]}  Bxc5 {[%clk 0:02:30]} 8. O-O {[%clk 0:02:53]}  Nge7 {[%clk 0:02:29]} 9. Nb3 {[%clk 0:02:39]}  Bb6 {[%clk 0:02:28]} 10. a4 {[%clk 0:02:28]}  O-O {[%clk 0:02:12]} 11. Bd2 {[%clk 0:02:23]}  Bxf3 {[%clk 0:02:03]} 12. Bxf3 {[%clk 0:02:21]}  Nxe5 {[%clk 0:02:03]} 13. Be2 {[%clk 0:02:17]}  a6 {[%clk 0:02:01]} 14. Kh1 {[%clk 0:02:14]}  Nf5 {[%clk 0:01:49]} 15. Bc3 {[%clk 0:02:01]}  Nc6 {[%clk 0:01:47]} 16. Bd3 {[%clk 0:01:59]}  Nd6 {[%clk 0:01:33]} 17. Qf3 {[%clk 0:01:52]}  Qg5 {[%clk 0:01:12]} 18. a5 {[%clk 0:01:42]}  Ba7 {[%clk 0:01:09]} 19. Ra4 {[%clk 0:01:39]}  Ne5 {[%clk 0:00:58]} 20. Qh3 {[%clk 0:01:31]}  Ng6 {[%clk 0:00:29]} 21. f4 {[%clk 0:01:12]}  Qh4 {[%clk 0:00:19]} 22. Qf3 {[%clk 0:01:09]}  Qe7 {[%clk 0:00:11]} 23. f5 {[%clk 0:01:04]}  Nxf5 {[%clk 0:00:05]} 24. Bxf5 {[%clk 0:01:03]}  exf5 {[%clk 0:00:06]} 25. Qxd5 {[%clk 0:01:00]}  Qe6 {[%clk 0:00:01]} 26. Qxf5 {[%clk 0:00:57]}  Rfe8 {[%clk 0:00:01]} 27. Qf3 {[%clk 0:00:54]}  Rab8 {[%clk 0:00:01]} 28. Nd4 {[%clk 0:00:46]}  Qd7 {[%clk 0:00:01]} 29. b3 {[%clk 0:00:43]}  Ne5 {[%clk 0:00:01]} 30. Qg3 {[%clk 0:00:43]}  Rbc8 {[%clk 0:00:02]} 31. Nf5 {[%clk 0:00:42]}  g6 {[%clk 0:00:01]} 32. Nh6+ {[%clk 0:00:37]}  Kg7 {[%clk 0:00:02]} 1-0


[Site "https://www.chess.com"]

[Event "Titled Tuesday Blitz May 9 Late 2023"]
[White "Bryakin, Mikhail"]
[Black "Annaberdiyev, Meylis"]
[WhiteFideId "4165314"]
[BlackFideId "14000563"]
[WhiteElo "2467"]
[BlackElo "2416"]
[Result "0-1"]
[Round "08"]
[TimeControl "180+2"]
[Date "2023.05.09"]
[WhiteClock "0:00:19"]
[BlackClock "0:00:17"]

1. e4 {[%clk 0:02:58]}  c5 {[%clk 0:02:59]} 2. Nf3 {[%clk 0:02:58]}  Nc6 {[%clk 0:02:59]} 3. Bb5 {[%clk 0:02:56]}  d6 {[%clk 0:02:54]} 4. O-O {[%clk 0:02:54]}  Bd7 {[%clk 0:02:53]} 5. c3 {[%clk 0:02:51]}  Nf6 {[%clk 0:02:52]} 6. Re1 {[%clk 0:02:51]}  a6 {[%clk 0:02:53]} 7. Ba4 {[%clk 0:02:51]}  b5 {[%clk 0:02:44]} 8. Bc2 {[%clk 0:02:51]}  Bg4 {[%clk 0:02:43]} 9. h3 {[%clk 0:02:50]}  Bxf3 {[%clk 0:02:13]} 10. Qxf3 {[%clk 0:02:51]}  Nd7 {[%clk 0:02:14]} 11. d3 {[%clk 0:02:45]}  g6 {[%clk 0:02:13]} 12. Bf4 {[%clk 0:02:39]}  Bg7 {[%clk 0:02:12]} 13. Nd2 {[%clk 0:02:39]}  O-O {[%clk 0:02:12]} 14. Rab1 {[%clk 0:02:38]}  b4 {[%clk 0:02:11]} 15. cxb4 {[%clk 0:02:31]}  Nxb4 {[%clk 0:02:01]} 16. Bb3 {[%clk 0:02:29]}  Nc6 {[%clk 0:01:59]} 17. Qd1 {[%clk 0:02:22]}  Rb8 {[%clk 0:01:57]} 18. Bc4 {[%clk 0:02:22]}  a5 {[%clk 0:01:50]} 19. b3 {[%clk 0:02:16]}  Nde5 {[%clk 0:01:43]} 20. Nf3 {[%clk 0:02:08]}  Nxf3+ {[%clk 0:01:42]} 21. Qxf3 {[%clk 0:02:09]}  Qd7 {[%clk 0:01:42]} 22. h4 {[%clk 0:02:07]}  a4 {[%clk 0:01:41]} 23. h5 {[%clk 0:02:07]}  axb3 {[%clk 0:01:41]} 24. axb3 {[%clk 0:02:06]}  Nd4 {[%clk 0:01:41]} 25. Qd1 {[%clk 0:02:07]}  e6 {[%clk 0:01:33]} 26. Be3 {[%clk 0:02:01]}  d5 {[%clk 0:01:31]} 27. Ba6 {[%clk 0:01:46]}  Rb6 {[%clk 0:01:25]} 28. b4 {[%clk 0:01:39]}  Rxa6 {[%clk 0:01:21]} 29. bxc5 {[%clk 0:01:39]}  dxe4 {[%clk 0:01:21]} 30. dxe4 {[%clk 0:01:39]}  e5 {[%clk 0:01:21]} 31. Rc1 {[%clk 0:01:25]}  Rc6 {[%clk 0:01:20]} 32. Qa4 {[%clk 0:01:24]}  gxh5 {[%clk 0:01:15]} 33. Red1 {[%clk 0:01:10]}  Rfc8 {[%clk 0:01:00]} 34. Rc4 {[%clk 0:01:03]}  Qg4 {[%clk 0:00:51]} 35. Rb1 {[%clk 0:00:54]}  Rg6 {[%clk 0:00:48]} 36. g3 {[%clk 0:00:53]}  Qxe4 {[%clk 0:00:41]} 37. Rd1 {[%clk 0:00:43]}  h4 {[%clk 0:00:29]} 38. Qd7 {[%clk 0:00:44]}  Nf3+ {[%clk 0:00:23]} 39. Kg2 {[%clk 0:00:37]}  Ne1+ {[%clk 0:00:21]} 40. Kf1 {[%clk 0:00:36]}  Qxc4+ {[%clk 0:00:21]} 41. Kxe1 {[%clk 0:00:37]}  Rf8 {[%clk 0:00:20]} 42. Rc1 {[%clk 0:00:34]}  Qb4+ {[%clk 0:00:19]} 43. Ke2 {[%clk 0:00:35]}  hxg3 {[%clk 0:00:18]} 44. c6 {[%clk 0:00:32]}  g2 {[%clk 0:00:17]} 45. f3 {[%clk 0:00:23]}  Qb2+ {[%clk 0:00:17]} 46. Kd3 {[%clk 0:00:17]}  Qxc1 {[%clk 0:00:17]} 47. Bxc1 {[%clk 0:00:18]}  g1=Q {[%clk 0:00:17]} 48. Be3 {[%clk 0:00:19]}  Qd1+ {[%clk 0:00:17]} 49. Ke4 {[%clk 0:00:20]}  Qxd7 {[%clk 0:00:17]} 50. cxd7 {[%clk 0:00:19]}  Rd6 {[%clk 0:00:17]} 0-1


[Site "https://www.chess.com"]

[Event "Titled Tuesday Blitz May 9 Late 2023"]
[White "Prohaszka, Peter"]
[Black "Subelj, Jan"]
[WhiteFideId "726265"]
[BlackFideId "14618583"]
[WhiteElo "2626"]
[BlackElo "2474"]
[Result "1/2-1/2"]
[Round "08"]
[TimeControl "180+2"]
[Date "2023.05.09"]
[WhiteClock "0:00:02"]
[BlackClock "0:00:22"]

1. d4 {[%clk 0:02:55]}  Nf6 {[%clk 0:02:58]} 2. c3 {[%clk 0:02:55]}  b6 {[%clk 0:02:51]} 3. Bg5 {[%clk 0:02:53]}  Bb7 {[%clk 0:02:49]} 4. Nd2 {[%clk 0:02:52]}  e6 {[%clk 0:02:46]} 5. Ngf3 {[%clk 0:02:42]}  Be7 {[%clk 0:02:41]} 6. e3 {[%clk 0:02:40]}  h6 {[%clk 0:02:37]} 7. Bh4 {[%clk 0:02:40]}  d6 {[%clk 0:02:26]} 8. Bd3 {[%clk 0:02:37]}  Nbd7 {[%clk 0:02:27]} 9. a4 {[%clk 0:02:36]}  a6 {[%clk 0:02:17]} 10. Qb1 {[%clk 0:02:35]}  g5 {[%clk 0:02:04]} 11. Bg3 {[%clk 0:02:34]}  Nh5 {[%clk 0:02:04]} 12. e4 {[%clk 0:02:22]}  g4 {[%clk 0:01:53]} 13. Ng1 {[%clk 0:02:21]}  Bg5 {[%clk 0:01:52]} 14. Ne2 {[%clk 0:01:56]}  Bxd2+ {[%clk 0:01:43]} 15. Kxd2 {[%clk 0:01:57]}  Qg5+ {[%clk 0:01:43]} 16. Kd1 {[%clk 0:01:57]}  f5 {[%clk 0:01:37]} 17. exf5 {[%clk 0:01:25]}  Bxg2 {[%clk 0:01:35]} 18. Rg1 {[%clk 0:01:25]}  Bf3 {[%clk 0:01:34]} 19. fxe6 {[%clk 0:01:25]}  Nf8 {[%clk 0:01:34]} 20. Be4 {[%clk 0:01:22]}  O-O-O {[%clk 0:01:33]} 21. Bxf3 {[%clk 0:01:21]}  gxf3 {[%clk 0:01:24]} 22. Nc1 {[%clk 0:00:43]}  Nxe6 {[%clk 0:01:15]} 23. Qe4 {[%clk 0:00:42]}  Kd7 {[%clk 0:01:13]} 24. Nd3 {[%clk 0:00:39]}  Rhf8 {[%clk 0:01:04]} 25. Kc2 {[%clk 0:00:36]}  Qf5 {[%clk 0:01:00]} 26. Rae1 {[%clk 0:00:31]}  Qxe4 {[%clk 0:00:57]} 27. Rxe4 {[%clk 0:00:32]}  Rf5 {[%clk 0:00:57]} 28. Rge1 {[%clk 0:00:21]}  Re8 {[%clk 0:00:53]} 29. c4 {[%clk 0:00:16]}  Nf6 {[%clk 0:00:47]} 30. Rh4 {[%clk 0:00:11]}  Rh5 {[%clk 0:00:47]} 31. Kc3 {[%clk 0:00:07]}  Rxh4 {[%clk 0:00:43]} 32. Bxh4 {[%clk 0:00:08]}  Nh5 {[%clk 0:00:42]} 33. d5 {[%clk 0:00:07]}  Nef4 {[%clk 0:00:42]} 34. Rxe8 {[%clk 0:00:07]}  Kxe8 {[%clk 0:00:42]} 35. Nxf4 {[%clk 0:00:08]}  Nxf4 {[%clk 0:00:43]} 36. Bg3 {[%clk 0:00:05]}  Ne2+ {[%clk 0:00:42]} 37. Kd3 {[%clk 0:00:05]}  a5 {[%clk 0:00:41]} 38. Ke4 {[%clk 0:00:05]}  Nc1 {[%clk 0:00:40]} 39. Kxf3 {[%clk 0:00:03]}  Nd3 {[%clk 0:00:40]} 40. Kg4 {[%clk 0:00:03]}  Nxb2 {[%clk 0:00:39]} 41. Kh5 {[%clk 0:00:04]}  Nxa4 {[%clk 0:00:40]} 42. Kg6 {[%clk 0:00:02]}  Nb2 {[%clk 0:00:40]} 43. f4 {[%clk 0:00:02]}  a4 {[%clk 0:00:40]} 44. Kg7 {[%clk 0:00:02]}  a3 {[%clk 0:00:38]} 45. f5 {[%clk 0:00:03]}  a2 {[%clk 0:00:38]} 46. f6 {[%clk 0:00:04]}  a1=Q {[%clk 0:00:38]} 47. f7+ {[%clk 0:00:05]}  Kd7 {[%clk 0:00:39]} 48. f8=Q {[%clk 0:00:06]}  Nxc4+ {[%clk 0:00:39]} 49. Kg8 {[%clk 0:00:05]}  Qb1 {[%clk 0:00:31]} 50. Bh4 {[%clk 0:00:03]}  Qg1+ {[%clk 0:00:24]} 51. Kh8 {[%clk 0:00:03]}  Qa1+ {[%clk 0:00:23]} 52. Kh7 {[%clk 0:00:02]}  Qb1+ {[%clk 0:00:23]} 53. Kh8 {[%clk 0:00:02]}  Qa1+ {[%clk 0:00:23]} 54. Kg8 {[%clk 0:00:02]}  Qg1+ {[%clk 0:00:22]} 55. Kh7 {[%clk 0:00:02]}  Qb1+ {[%clk 0:00:22]} 56. Kh8 {[%clk 0:00:02]}  Qa1+ {[%clk 0:00:22]} 1/2-1/2


[Site "https://www.chess.com"]

[Event "Titled Tuesday Blitz May 9 Late 2023"]
[White "Kourkoulos-Arditis, Stamatis"]
[Black "Timmermans, Mark"]
[WhiteFideId "4221990"]
[BlackFideId "1026399"]
[WhiteElo "2400"]
[BlackElo "2460"]
[Result "0-1"]
[Round "08"]
[TimeControl "180+2"]
[Date "2023.05.09"]
[WhiteClock "0:00:03"]
[BlackClock "0:01:10"]

1. Nf3 {[%clk 0:03:00]}  Nf6 {[%clk 0:02:59]} 2. g3 {[%clk 0:03:01]}  e6 {[%clk 0:02:59]} 3. Bg2 {[%clk 0:03:01]}  d5 {[%clk 0:03:00]} 4. O-O {[%clk 0:03:01]}  Be7 {[%clk 0:03:01]} 5. b3 {[%clk 0:03:02]}  O-O {[%clk 0:03:02]} 6. Bb2 {[%clk 0:03:02]}  c5 {[%clk 0:03:02]} 7. e3 {[%clk 0:02:58]}  Nc6 {[%clk 0:03:00]} 8. Ne5 {[%clk 0:02:58]}  Nxe5 {[%clk 0:02:56]} 9. Bxe5 {[%clk 0:02:59]}  Nd7 {[%clk 0:02:56]} 10. Bb2 {[%clk 0:02:58]}  b5 {[%clk 0:02:56]} 11. Nc3 {[%clk 0:02:03]}  a6 {[%clk 0:02:52]} 12. Ne2 {[%clk 0:01:58]}  Bb7 {[%clk 0:02:49]} 13. c4 {[%clk 0:01:57]}  Nb6 {[%clk 0:02:46]} 14. d3 {[%clk 0:01:47]}  Qd7 {[%clk 0:02:36]} 15. cxd5 {[%clk 0:01:25]}  Bxd5 {[%clk 0:02:37]} 16. e4 {[%clk 0:01:24]}  Bb7 {[%clk 0:02:36]} 17. Qc2 {[%clk 0:01:03]}  Rfd8 {[%clk 0:02:36]} 18. Rad1 {[%clk 0:01:03]}  Rac8 {[%clk 0:02:30]} 19. Qb1 {[%clk 0:01:02]}  Qc7 {[%clk 0:02:25]} 20. Bc3 {[%clk 0:00:55]}  c4 {[%clk 0:02:20]} 21. bxc4 {[%clk 0:00:53]}  bxc4 {[%clk 0:02:19]} 22. Ba5 {[%clk 0:00:51]}  cxd3 {[%clk 0:02:05]} 23. Bxb6 {[%clk 0:00:50]}  dxe2 {[%clk 0:02:05]} 24. Rxd8+ {[%clk 0:00:40]}  Bxd8 {[%clk 0:02:03]} 25. Bxc7 {[%clk 0:00:40]}  exf1=Q+ {[%clk 0:02:01]} 26. Bxf1 {[%clk 0:00:36]}  Rxc7 {[%clk 0:02:02]} 27. h4 {[%clk 0:00:31]}  Rd7 {[%clk 0:01:46]} 28. Qc2 {[%clk 0:00:31]}  Be7 {[%clk 0:01:36]} 29. Qa4 {[%clk 0:00:26]}  Rd6 {[%clk 0:01:36]} 30. Qe8+ {[%clk 0:00:24]}  Bf8 {[%clk 0:01:36]} 31. Qb8 {[%clk 0:00:23]}  Bxe4 {[%clk 0:01:33]} 32. Bg2 {[%clk 0:00:17]}  Bxg2 {[%clk 0:01:29]} 33. Kxg2 {[%clk 0:00:18]}  Rd5 {[%clk 0:01:30]} 34. Qa8 {[%clk 0:00:15]}  Ra5 {[%clk 0:01:28]} 35. g4 {[%clk 0:00:11]}  Rxa2 {[%clk 0:01:25]} 36. g5 {[%clk 0:00:11]}  a5 {[%clk 0:01:24]} 37. h5 {[%clk 0:00:11]}  g6 {[%clk 0:01:23]} 38. h6 {[%clk 0:00:05]}  a4 {[%clk 0:01:23]} 39. Kf3 {[%clk 0:00:05]}  a3 {[%clk 0:01:24]} 40. Ke3 {[%clk 0:00:04]}  Ra1 {[%clk 0:01:19]} 41. Kf3 {[%clk 0:00:04]}  Rg1 {[%clk 0:01:17]} 42. Kf4 {[%clk 0:00:04]}  e5+ {[%clk 0:01:14]} 43. Kxe5 {[%clk 0:00:05]}  Rxg5+ {[%clk 0:01:15]} 44. Ke4 {[%clk 0:00:05]}  Rh5 {[%clk 0:01:11]} 45. f4 {[%clk 0:00:05]}  Rxh6 {[%clk 0:01:12]} 46. f5 {[%clk 0:00:05]}  gxf5+ {[%clk 0:01:10]} 47. Kxf5 {[%clk 0:00:05]}  Rg6 {[%clk 0:01:11]} 48. Kf4 {[%clk 0:00:06]}  h5 {[%clk 0:01:11]} 49. Qa5 {[%clk 0:00:06]}  h4 {[%clk 0:01:10]} 50. Ke3 {[%clk 0:00:03]}  h3 {[%clk 0:01:10]} 0-1


[Site "https://www.chess.com"]

[Event "Titled Tuesday Blitz May 9 Late 2023"]
[White "Hnydiuk, Aleksander"]
[Black "Grigoriants, Sergey"]
[WhiteFideId "1109057"]
[BlackFideId "4130804"]
[WhiteElo "2374"]
[BlackElo "2502"]
[Result "0-1"]
[Round "08"]
[TimeControl "180+2"]
[Date "2023.05.09"]
[WhiteClock "0:00:00"]
[BlackClock "0:00:12"]

1. e4 {[%clk 0:03:00]}  e6 {[%clk 0:02:58]} 2. d4 {[%clk 0:02:59]}  d5 {[%clk 0:02:58]} 3. Nc3 {[%clk 0:02:59]}  Nf6 {[%clk 0:02:57]} 4. Bg5 {[%clk 0:02:59]}  h6 {[%clk 0:02:56]} 5. Bxf6 {[%clk 0:02:55]}  Qxf6 {[%clk 0:02:57]} 6. Nf3 {[%clk 0:02:53]}  Bb4 {[%clk 0:02:56]} 7. Qd3 {[%clk 0:02:52]}  dxe4 {[%clk 0:02:24]} 8. Qxe4 {[%clk 0:02:52]}  Qf5 {[%clk 0:01:56]} 9. Qxf5 {[%clk 0:02:41]}  Bxc3+ {[%clk 0:01:56]} 10. bxc3 {[%clk 0:02:41]}  exf5 {[%clk 0:01:56]} 11. O-O-O {[%clk 0:02:34]}  O-O {[%clk 0:01:54]} 12. Bd3 {[%clk 0:02:30]}  Nc6 {[%clk 0:01:38]} 13. Rhe1 {[%clk 0:02:28]}  Rd8 {[%clk 0:01:32]} 14. c4 {[%clk 0:02:23]}  g6 {[%clk 0:01:29]} 15. h4 {[%clk 0:02:17]}  Nxd4 {[%clk 0:01:03]} 16. Nxd4 {[%clk 0:02:10]}  Rxd4 {[%clk 0:01:04]} 17. Re8+ {[%clk 0:02:10]}  Kg7 {[%clk 0:01:05]} 18. Be2 {[%clk 0:01:59]}  Re4 {[%clk 0:01:02]} 19. Rdd8 {[%clk 0:01:49]}  Bd7 {[%clk 0:00:55]} 20. Rg8+ {[%clk 0:01:38]}  Kf6 {[%clk 0:00:55]} 21. Rxa8 {[%clk 0:01:36]}  Rxe2 {[%clk 0:00:55]} 22. Rgd8 {[%clk 0:01:30]}  Ke7 {[%clk 0:00:46]} 23. Rdb8 {[%clk 0:01:28]}  Bc6 {[%clk 0:00:43]} 24. Rxa7 {[%clk 0:01:18]}  Rxf2 {[%clk 0:00:44]} 25. g3 {[%clk 0:01:16]}  Rg2 {[%clk 0:00:44]} 26. Ra3 {[%clk 0:01:15]}  g5 {[%clk 0:00:42]} 27. Rh8 {[%clk 0:01:08]}  gxh4 {[%clk 0:00:26]} 28. gxh4 {[%clk 0:01:09]}  f4 {[%clk 0:00:25]} 29. Rxh6 {[%clk 0:01:08]}  Be4 {[%clk 0:00:26]} 30. Rh5 {[%clk 0:00:56]}  f5 {[%clk 0:00:19]} 31. Rg5 {[%clk 0:00:53]}  Rxc2+ {[%clk 0:00:18]} 32. Kd1 {[%clk 0:00:54]}  Rh2 {[%clk 0:00:18]} 33. h5 {[%clk 0:00:51]}  f3 {[%clk 0:00:19]} 34. Ke1 {[%clk 0:00:48]}  Kf6 {[%clk 0:00:19]} 35. Rg6+ {[%clk 0:00:46]}  Ke5 {[%clk 0:00:20]} 36. h6 {[%clk 0:00:45]}  Kf4 {[%clk 0:00:20]} 37. Kf1 {[%clk 0:00:30]}  c5 {[%clk 0:00:19]} 38. Rb3 {[%clk 0:00:28]}  Ke5 {[%clk 0:00:18]} 39. a4 {[%clk 0:00:26]}  Kd4 {[%clk 0:00:17]} 40. a5 {[%clk 0:00:25]}  Kxc4 {[%clk 0:00:17]} 41. Ra3 {[%clk 0:00:17]}  Kd4 {[%clk 0:00:17]} 42. Kg1 {[%clk 0:00:09]}  Rh3 {[%clk 0:00:17]} 43. Kf2 {[%clk 0:00:08]}  c4 {[%clk 0:00:17]} 44. a6 {[%clk 0:00:05]}  bxa6 {[%clk 0:00:17]} 45. Raxa6 {[%clk 0:00:05]}  Rh2+ {[%clk 0:00:14]} 46. Kg3 {[%clk 0:00:03]}  f2 {[%clk 0:00:12]} 47. Ra1 {[%clk 0:00:00]}  Rg2+ {[%clk 0:00:12]} 0-1


[Site "https://www.chess.com"]

[Event "Titled Tuesday Blitz May 9 Late 2023"]
[White "Gorshtein, Ido"]
[Black "Peng, Li Min"]
[WhiteFideId "2815532"]
[BlackFideId "14112620"]
[WhiteElo "2415"]
[BlackElo "2436"]
[Result "0-1"]
[Round "08"]
[TimeControl "180+2"]
[Date "2023.05.09"]
[WhiteClock "0:00:00"]
[BlackClock "0:00:04"]

1. Nf3 {[%clk 0:03:00]}  d5 {[%clk 0:03:00]} 2. c4 {[%clk 0:02:58]}  e6 {[%clk 0:03:00]} 3. d4 {[%clk 0:02:55]}  Nf6 {[%clk 0:02:58]} 4. Nc3 {[%clk 0:02:54]}  dxc4 {[%clk 0:02:58]} 5. e4 {[%clk 0:02:51]}  b5 {[%clk 0:02:59]} 6. e5 {[%clk 0:02:50]}  Nd5 {[%clk 0:02:59]} 7. Nxb5 {[%clk 0:02:49]}  Nb6 {[%clk 0:03:00]} 8. Be2 {[%clk 0:02:49]}  Be7 {[%clk 0:02:59]} 9. O-O {[%clk 0:02:48]}  Nc6 {[%clk 0:02:59]} 10. Qd2 {[%clk 0:02:40]}  O-O {[%clk 0:02:58]} 11. Qf4 {[%clk 0:02:37]}  Rb8 {[%clk 0:02:58]} 12. Nc3 {[%clk 0:02:26]}  Bb7 {[%clk 0:02:51]} 13. Qg3 {[%clk 0:02:24]}  Kh8 {[%clk 0:02:51]} 14. Rd1 {[%clk 0:02:19]}  f5 {[%clk 0:02:48]} 15. exf6 {[%clk 0:02:12]}  Bxf6 {[%clk 0:02:48]} 16. Bg5 {[%clk 0:02:12]}  Nb4 {[%clk 0:02:33]} 17. h4 {[%clk 0:02:07]}  Bxf3 {[%clk 0:02:10]} 18. Bxf3 {[%clk 0:02:04]}  Nc2 {[%clk 0:02:11]} 19. Rac1 {[%clk 0:02:03]}  Nxd4 {[%clk 0:02:11]} 20. Be4 {[%clk 0:01:54]}  c5 {[%clk 0:01:58]} 21. Qg4 {[%clk 0:01:50]}  Bxg5 {[%clk 0:01:50]} 22. hxg5 {[%clk 0:01:48]}  g6 {[%clk 0:01:51]} 23. g3 {[%clk 0:01:47]}  Qe7 {[%clk 0:01:44]} 24. Kg2 {[%clk 0:01:46]}  Kg8 {[%clk 0:01:42]} 25. Rh1 {[%clk 0:01:41]}  Rf7 {[%clk 0:01:37]} 26. Rh6 {[%clk 0:01:36]}  Rbf8 {[%clk 0:01:33]} 27. Rf1 {[%clk 0:01:25]}  Nf5 {[%clk 0:01:21]} 28. Rhh1 {[%clk 0:01:24]}  Qd6 {[%clk 0:01:09]} 29. Bb1 {[%clk 0:01:18]}  Qd2 {[%clk 0:01:06]} 30. Qe2 {[%clk 0:00:49]}  Qxe2 {[%clk 0:00:56]} 31. Nxe2 {[%clk 0:00:50]}  e5 {[%clk 0:00:57]} 32. Nc3 {[%clk 0:00:46]}  Nd4 {[%clk 0:00:55]} 33. Ne4 {[%clk 0:00:46]}  Na4 {[%clk 0:00:55]} 34. Nf6+ {[%clk 0:00:44]}  Rxf6 {[%clk 0:00:56]} 35. gxf6 {[%clk 0:00:45]}  Nxb2 {[%clk 0:00:54]} 36. Rc1 {[%clk 0:00:41]}  Rxf6 {[%clk 0:00:52]} 37. Be4 {[%clk 0:00:42]}  Rd6 {[%clk 0:00:43]} 38. Rc3 {[%clk 0:00:36]}  Nb5 {[%clk 0:00:33]} 39. Rc2 {[%clk 0:00:35]}  c3 {[%clk 0:00:30]} 40. a4 {[%clk 0:00:23]}  Nxa4 {[%clk 0:00:30]} 41. Ra1 {[%clk 0:00:23]}  Nb2 {[%clk 0:00:26]} 42. Ra5 {[%clk 0:00:21]}  a6 {[%clk 0:00:26]} 43. Bb7 {[%clk 0:00:20]}  Nd1 {[%clk 0:00:16]} 44. Bxa6 {[%clk 0:00:16]}  Nd4 {[%clk 0:00:16]} 45. Bc4+ {[%clk 0:00:17]}  Kg7 {[%clk 0:00:15]} 46. Ra7+ {[%clk 0:00:17]}  Kh6 {[%clk 0:00:13]} 47. Rc1 {[%clk 0:00:18]}  c2 {[%clk 0:00:13]} 48. Bd3 {[%clk 0:00:18]}  Rf6 {[%clk 0:00:12]} 49. f4 {[%clk 0:00:16]}  exf4 {[%clk 0:00:12]} 50. Bxc2 {[%clk 0:00:15]}  Nxc2 {[%clk 0:00:12]} 51. gxf4 {[%clk 0:00:12]}  Nde3+ {[%clk 0:00:05]} 52. Kf3 {[%clk 0:00:11]}  g5 {[%clk 0:00:05]} 53. Rh1+ {[%clk 0:00:11]}  Kg6 {[%clk 0:00:05]} 54. Rhxh7 {[%clk 0:00:10]}  Rxf4+ {[%clk 0:00:05]} 55. Ke2 {[%clk 0:00:11]}  Nf5 {[%clk 0:00:03]} 56. Rhc7 {[%clk 0:00:08]}  Ncd4+ {[%clk 0:00:04]} 57. Kd3 {[%clk 0:00:07]}  Kh5 {[%clk 0:00:05]} 58. Rxc5 {[%clk 0:00:07]}  Kg4 {[%clk 0:00:05]} 59. Ra4 {[%clk 0:00:06]}  Rf3+ {[%clk 0:00:03]} 60. Ke4 {[%clk 0:00:05]}  Rf4+ {[%clk 0:00:04]} 61. Kd5 {[%clk 0:00:05]}  Nf3 {[%clk 0:00:04]} 62. Rxf4+ {[%clk 0:00:04]}  Kxf4 {[%clk 0:00:04]} 63. Rc4+ {[%clk 0:00:04]}  N5d4 {[%clk 0:00:05]} 64. Rc8 {[%clk 0:00:03]}  Nf5 {[%clk 0:00:05]} 65. Ke6 {[%clk 0:00:00]}  N3d4+ {[%clk 0:00:04]} 0-1


[Site "https://www.chess.com"]

[Event "Titled Tuesday Blitz May 9 Late 2023"]
[White "Kuznetsov, Felix"]
[Black "Gritsenko, Nikolai"]
[WhiteFideId "34147990"]
[BlackFideId "14112493"]
[WhiteElo "2281"]
[BlackElo "2389"]
[Result "0-1"]
[Round "08"]
[TimeControl "180+2"]
[Date "2023.05.09"]
[WhiteClock "0:00:01"]
[BlackClock "0:00:17"]

1. e4 {[%clk 0:03:00]}  d5 {[%clk 0:02:59]} 2. exd5 {[%clk 0:03:01]}  Nf6 {[%clk 0:03:00]} 3. d4 {[%clk 0:03:00]}  Bg4 {[%clk 0:02:59]} 4. f3 {[%clk 0:03:00]}  Bf5 {[%clk 0:03:00]} 5. g4 {[%clk 0:03:00]}  Bg6 {[%clk 0:03:00]} 6. c4 {[%clk 0:03:00]}  e6 {[%clk 0:02:59]} 7. Nc3 {[%clk 0:03:01]}  exd5 {[%clk 0:02:51]} 8. Qb3 {[%clk 0:02:55]}  Nbd7 {[%clk 0:02:36]} 9. g5 {[%clk 0:02:29]}  Nh5 {[%clk 0:02:34]} 10. Nxd5 {[%clk 0:02:18]}  Bd6 {[%clk 0:01:59]} 11. c5 {[%clk 0:02:13]}  c6 {[%clk 0:01:56]} 12. cxd6 {[%clk 0:02:03]}  cxd5 {[%clk 0:01:56]} 13. Qe3+ {[%clk 0:01:54]}  Kf8 {[%clk 0:01:55]} 14. Bh3 {[%clk 0:01:41]}  h6 {[%clk 0:01:42]} 15. gxh6 {[%clk 0:01:26]}  Qh4+ {[%clk 0:01:40]} 16. Qf2 {[%clk 0:01:04]}  Re8+ {[%clk 0:01:32]} 17. Kf1 {[%clk 0:01:04]}  Bd3+ {[%clk 0:01:03]} 18. Kg2 {[%clk 0:01:04]}  Qd8 {[%clk 0:01:01]} 19. Bg4 {[%clk 0:00:50]}  Ndf6 {[%clk 0:00:57]} 20. d7 {[%clk 0:00:46]}  Nxd7 {[%clk 0:00:37]} 21. Bxh5 {[%clk 0:00:37]}  Nf6 {[%clk 0:00:33]} 22. Bg4 {[%clk 0:00:34]}  gxh6 {[%clk 0:00:27]} 23. Bf4 {[%clk 0:00:33]}  h5 {[%clk 0:00:26]} 24. Bh3 {[%clk 0:00:12]}  Rg8+ {[%clk 0:00:26]} 25. Bg3 {[%clk 0:00:13]}  h4 {[%clk 0:00:26]} 26. Re1 {[%clk 0:00:12]}  hxg3 {[%clk 0:00:25]} 27. hxg3 {[%clk 0:00:13]}  Nh5 {[%clk 0:00:24]} 28. Bg4 {[%clk 0:00:11]}  Nf6 {[%clk 0:00:24]} 29. Rxe8+ {[%clk 0:00:10]}  Qxe8 {[%clk 0:00:23]} 30. Qd2 {[%clk 0:00:11]}  Nxg4 {[%clk 0:00:20]} 31. fxg4 {[%clk 0:00:08]}  Be4+ {[%clk 0:00:19]} 32. Nf3 {[%clk 0:00:09]}  Bxf3+ {[%clk 0:00:19]} 33. Kf2 {[%clk 0:00:06]}  Bxh1 {[%clk 0:00:18]} 34. Qh6+ {[%clk 0:00:06]}  Ke7 {[%clk 0:00:19]} 35. Qxh1 {[%clk 0:00:04]}  Qc6 {[%clk 0:00:17]} 36. Qh4+ {[%clk 0:00:01]}  Qf6+ {[%clk 0:00:17]} 0-1


[Site "https://www.chess.com"]